[Event "Early-Titled-Tuesday-Blitz-May-28-2024"]
[Site "Chess.com"]
[Date "2024.05.28"]
[Round "8"]
[White "SoCalJuniorChess"]
[Black "InitiatingASC"]
[Result "1-0"]
[WhiteElo "2254"]
[BlackElo "2408"]
[TimeControl "180+1"]
[EndTime "9:32:23 PDT"]
[Termination "SoCalJuniorChess won by checkmate"]

1. d4 {[%clk 0:03:00.9]} 1... d5 {[%clk 0:02:52.8]} 2. Nc3 {[%clk 0:03:00.1]}
2... c5 {[%clk 0:02:46.1]} 3. dxc5 {[%clk 0:02:57.1]} 3... d4 {[%clk 0:02:46.2]}
4. Na4 {[%clk 0:02:53.6]} 4... e5 {[%clk 0:02:39.8]} 5. b4 {[%clk 0:02:45.7]}
5... Nc6 {[%clk 0:02:36.1]} 6. a3 {[%clk 0:02:45.2]} 6... Nf6 {[%clk 0:02:19.5]}
7. e3 {[%clk 0:02:22.9]} 7... Be7 {[%clk 0:02:09.9]} 8. exd4 {[%clk 0:02:15.7]}
8... exd4 {[%clk 0:02:04.2]} 9. Bg5 {[%clk 0:02:13.4]} 9... O-O {[%clk
0:01:55.3]} 10. Nf3 {[%clk 0:02:13.3]} 10... Ne4 {[%clk 0:01:18.7]} 11. Bxe7
{[%clk 0:02:12.1]} 11... Qxe7 {[%clk 0:01:19.1]} 12. Be2 {[%clk 0:02:12.6]}
12... Bg4 {[%clk 0:01:01.8]} 13. O-O {[%clk 0:02:12.1]} 13... Nc3 {[%clk
0:01:02.3]} 14. Nxc3 {[%clk 0:02:10.1]} 14... dxc3 {[%clk 0:01:02.8]} 15. Qd3
{[%clk 0:01:56.9]} 15... Rad8 {[%clk 0:01:01]} 16. Qc4 {[%clk 0:01:57.4]} 16...
Bf5 {[%clk 0:00:42.7]} 17. Bd3 {[%clk 0:01:54.6]} 17... Bxd3 {[%clk 0:00:23.2]}
18. cxd3 {[%clk 0:01:53.5]} 18... Ne5 {[%clk 0:00:23.6]} 19. Nxe5 {[%clk
0:01:36.7]} 19... Qxe5 {[%clk 0:00:24.5]} 20. Rac1 {[%clk 0:01:36.7]} 20... Qe2
{[%clk 0:00:18.5]} 21. Rxc3 {[%clk 0:01:35.1]} 21... Rfe8 {[%clk 0:00:16.5]} 22.
h3 {[%clk 0:01:33.8]} 22... Qd2 {[%clk 0:00:12.1]} 23. b5 {[%clk 0:01:21.9]}
23... Re1 {[%clk 0:00:11.3]} 24. Rc1 {[%clk 0:01:09.8]} 24... Rxf1+ {[%clk
0:00:10.2]} 25. Kxf1 {[%clk 0:01:07.8]} 25... Rxd3 {[%clk 0:00:09]} 26. c6
{[%clk 0:01:04.4]} 26... bxc6 {[%clk 0:00:06.7]} 27. bxc6 {[%clk 0:01:05.3]}
27... Rd8 {[%clk 0:00:04.6]} 28. c7 {[%clk 0:01:02]} 28... Rc8 {[%clk
0:00:04.5]} 29. Rb1 {[%clk 0:01:00.7]} 29... h6 {[%clk 0:00:02]} 30. Kg1 {[%clk
0:00:29.6]} 30... Kh7 {[%clk 0:00:01.3]} 31. g3 {[%clk 0:00:20.4]} 31... Qd6
{[%clk 0:00:01]} 32. Rc1 {[%clk 0:00:17.5]} 32... Qd7 {[%clk 0:00:01.2]} 33. Kh2
{[%clk 0:00:16.2]} 33... g6 {[%clk 0:00:01.4]} 34. Qc5 {[%clk 0:00:15.2]} 34...
Kg7 {[%clk 0:00:01.8]} 35. Qe5+ {[%clk 0:00:14.8]} 35... Kh7 {[%clk 0:00:01.9]}
36. a4 {[%clk 0:00:15.5]} 36... Qd2 {[%clk 0:00:01.9]} 37. Qc5 {[%clk
0:00:14.1]} 37... Qd7 {[%clk 0:00:01.8]} 38. a5 {[%clk 0:00:14]} 38... Qe6
{[%clk 0:00:02]} 39. Qc6 {[%clk 0:00:10.9]} 39... Qf5 {[%clk 0:00:01.9]} 40. a6
{[%clk 0:00:09.8]} 40... Qxf2+ {[%clk 0:00:02.1]} 41. Qg2 {[%clk 0:00:08.7]}
41... Qf6 {[%clk 0:00:02]} 42. Qc2 {[%clk 0:00:08.5]} 42... Qxa6 {[%clk
0:00:02.1]} 43. Qc5 {[%clk 0:00:07]} 43... Qb7 {[%clk 0:00:02.4]} 44. Qe7 {[%clk
0:00:06.3]} 44... Qf3 {[%clk 0:00:02.1]} 45. Rc2 {[%clk 0:00:05.5]} 45... Qd3
{[%clk 0:00:01.3]} 46. Qc5 {[%clk 0:00:05.4]} 46... Qf3 {[%clk 0:00:01]} 47. Rf2
{[%clk 0:00:05.5]} 47... Qxf2+ {[%clk 0:00:01]} 48. Qxf2 {[%clk 0:00:05.3]}
48... Rxc7 {[%clk 0:00:01.9]} 49. Qb2 {[%clk 0:00:05.9]} 49... Re7 {[%clk
0:00:02.1]} 50. Kg2 {[%clk 0:00:05.1]} 50... Kg8 {[%clk 0:00:02.2]} 51. Qb8+
{[%clk 0:00:04.6]} 51... Kg7 {[%clk 0:00:01.8]} 52. Qd8 {[%clk 0:00:04.7]} 52...
Re6 {[%clk 0:00:02.2]} 53. Kf3 {[%clk 0:00:05]} 53... a6 {[%clk 0:00:02.7]} 54.
Qa5 {[%clk 0:00:05.1]} 54... Rf6+ {[%clk 0:00:02.9]} 55. Ke3 {[%clk 0:00:05.1]}
55... h5 {[%clk 0:00:03.5]} 56. h4 {[%clk 0:00:04.9]} 56... Rf5 {[%clk 0:00:04]}
57. Qxa6 {[%clk 0:00:04.5]} 57... Kh7 {[%clk 0:00:04.6]} 58. Qd6 {[%clk
0:00:04.5]} 58... Kg7 {[%clk 0:00:05.1]} 59. Qe7 {[%clk 0:00:04.9]} 59... Kh7
{[%clk 0:00:05.7]} 60. Kd4 {[%clk 0:00:05.2]} 60... Kg7 {[%clk 0:00:06.3]} 61.
Ke3 {[%clk 0:00:05.3]} 61... Kh7 {[%clk 0:00:06.9]} 62. Qd6 {[%clk 0:00:05.7]}
62... Kg7 {[%clk 0:00:07.3]} 63. Qd4+ {[%clk 0:00:06]} 63... Kh7 {[%clk
0:00:07.7]} 64. Qb2 {[%clk 0:00:06.3]} 64... Kg8 {[%clk 0:00:08.2]} 65. Ke4
{[%clk 0:00:06.5]} 65... Kf8 {[%clk 0:00:07.6]} 66. Qh8+ {[%clk 0:00:06.2]}
66... Ke7 {[%clk 0:00:08.1]} 67. Qh7 {[%clk 0:00:05.9]} 67... Ke6 {[%clk
0:00:08]} 68. Qg8 {[%clk 0:00:05.6]} 68... Ke7 {[%clk 0:00:08.2]} 69. Qc8 {[%clk
0:00:05.2]} 69... Rf6 {[%clk 0:00:07.5]} 70. Qc7+ {[%clk 0:00:04]} 70... Kf8
{[%clk 0:00:07.6]} 71. Qc3 {[%clk 0:00:04.2]} 71... Re6+ {[%clk 0:00:07.3]} 72.
Kf4 {[%clk 0:00:04.3]} 72... Rd6 {[%clk 0:00:06.8]} 73. Kg5 {[%clk 0:00:04.1]}
73... Rd5+ {[%clk 0:00:06.9]} 74. Kh6 {[%clk 0:00:04.3]} 74... Rf5 {[%clk
0:00:06.5]} 75. Qh8+ {[%clk 0:00:04]} 75... Ke7 {[%clk 0:00:07]} 76. Qd4 {[%clk
0:00:04.1]} 76... Ke6 {[%clk 0:00:05.8]} 77. Qe4+ {[%clk 0:00:04.3]} 77... Kf6
{[%clk 0:00:06]} 78. Qd4+ {[%clk 0:00:03.9]} 78... Ke7 {[%clk 0:00:06.5]} 79.
Qb4+ {[%clk 0:00:03.7]} 79... Kf6 {[%clk 0:00:06.9]} 80. Qc3+ {[%clk 0:00:03.6]}
80... Ke6 {[%clk 0:00:07.4]} 81. Qe3+ {[%clk 0:00:03.5]} 81... Kf6 {[%clk
0:00:07.8]} 82. Qd4+ {[%clk 0:00:03.5]} 82... Ke7 {[%clk 0:00:08.2]} 83. g4
{[%clk 0:00:04]} 83... hxg4 {[%clk 0:00:07.8]} 84. Qxg4 {[%clk 0:00:04.9]} 84...
Kf6 {[%clk 0:00:07.1]} 85. Qd4+ {[%clk 0:00:04]} 85... Ke6 {[%clk 0:00:07.1]}
86. Kg7 {[%clk 0:00:04.3]} 86... Ke7 {[%clk 0:00:07]} 87. Qe4+ {[%clk
0:00:04.3]} 87... Kd6 {[%clk 0:00:06.7]} 88. Qe8 {[%clk 0:00:04]} 88... Kd5
{[%clk 0:00:06.4]} 89. Qxf7+ {[%clk 0:00:01.2]} 89... Ke5 {[%clk 0:00:02.7]} 90.
Qxg6 {[%clk 0:00:01]} 90... Rf3 {[%clk 0:00:02.7]} 91. h5 {[%clk 0:00:01.5]}
91... Rf7+ {[%clk 0:00:02.7]} 92. Qxf7 {[%clk 0:00:01.4]} 92... Ke4 {[%clk
0:00:03]} 93. Qg6+ {[%clk 0:00:02.3]} 93... Ke3 {[%clk 0:00:03.6]} 94. h6 {[%clk
0:00:03.2]} 94... Kf3 {[%clk 0:00:04.2]} 95. h7 {[%clk 0:00:03.8]} 95... Kf2
{[%clk 0:00:05.1]} 96. h8=Q {[%clk 0:00:04.5]} 96... Kf1 {[%clk 0:00:06]} 97.
Qf8+ {[%clk 0:00:04.7]} 97... Ke1 {[%clk 0:00:06.9]} 98. Qge8+ {[%clk 0:00:05]}
98... Kd1 {[%clk 0:00:07.8]} 99. Qfe7 {[%clk 0:00:05.5]} 99... Kc1 {[%clk
0:00:08.7]} 100. Q8d8 {[%clk 0:00:06.2]} 100... Kb1 {[%clk 0:00:09.6]} 101. Qec7
{[%clk 0:00:06.6]} 101... Ka1 {[%clk 0:00:10.5]} 102. Qdb8 {[%clk 0:00:06.9]}
102... Ka2 {[%clk 0:00:06.8]} 103. Qca7# {[%clk 0:00:07.8]} 1-0

[Event "Early-Titled-Tuesday-Blitz-May-28-2024"]
[Site "Chess.com"]
[Date "2024.05.28"]
[Round "8"]
[White "Abund"]
[Black "Jospem"]
[Result "1-0"]
[WhiteElo "2818"]
[BlackElo "3014"]
[TimeControl "180+1"]
[EndTime "9:33:39 PDT"]
[Termination "Abund won on time"]

1. e4 {[%clk 0:03:00.9]} 1... c5 {[%clk 0:02:59.6]} 2. Nf3 {[%clk 0:03:01]} 2...
d6 {[%clk 0:02:59.8]} 3. Bb5+ {[%clk 0:03:01.4]} 3... Nd7 {[%clk 0:02:59.6]} 4.
c3 {[%clk 0:03:01.8]} 4... Nf6 {[%clk 0:02:58.8]} 5. Qe2 {[%clk 0:03:02.2]} 5...
a6 {[%clk 0:02:58.9]} 6. Ba4 {[%clk 0:03:03]} 6... b5 {[%clk 0:02:59]} 7. Bc2
{[%clk 0:03:03.5]} 7... Bb7 {[%clk 0:02:59.5]} 8. d4 {[%clk 0:03:02.4]} 8... e6
{[%clk 0:02:59.7]} 9. O-O {[%clk 0:03:02.2]} 9... Be7 {[%clk 0:03:00]} 10. Re1
{[%clk 0:03:02.5]} 10... Qc7 {[%clk 0:02:58.7]} 11. Bd3 {[%clk 0:03:00.4]} 11...
O-O {[%clk 0:02:58.3]} 12. Nbd2 {[%clk 0:02:59.6]} 12... e5 {[%clk 0:02:56]} 13.
dxe5 {[%clk 0:02:55.7]} 13... dxe5 {[%clk 0:02:54.3]} 14. c4 {[%clk 0:02:55.2]}
14... b4 {[%clk 0:02:54.8]} 15. Nf1 {[%clk 0:02:49.5]} 15... Rfe8 {[%clk
0:02:54.9]} 16. N3d2 {[%clk 0:02:19.9]} 16... Nf8 {[%clk 0:02:50.3]} 17. Ne3
{[%clk 0:02:17.1]} 17... Ne6 {[%clk 0:02:50.9]} 18. Nd5 {[%clk 0:02:17.5]} 18...
Qd6 {[%clk 0:02:46.6]} 19. Nf1 {[%clk 0:02:10.4]} 19... Nd4 {[%clk 0:02:45.9]}
20. Qd1 {[%clk 0:02:10.3]} 20... Bf8 {[%clk 0:02:28.1]} 21. Bg5 {[%clk
0:02:06.2]} 21... Nd7 {[%clk 0:02:15.5]} 22. Qh5 {[%clk 0:02:01.7]} 22... f6
{[%clk 0:02:10]} 23. Bd2 {[%clk 0:01:58.5]} 23... g6 {[%clk 0:02:10.3]} 24. Qh3
{[%clk 0:01:54.2]} 24... Bg7 {[%clk 0:02:07.6]} 25. Nfe3 {[%clk 0:01:41]} 25...
Nf8 {[%clk 0:02:07.6]} 26. Be2 {[%clk 0:01:28.6]} 26... Nfe6 {[%clk 0:01:47.3]}
27. Ng4 {[%clk 0:01:28.3]} 27... Rf8 {[%clk 0:01:41.2]} 28. Bd3 {[%clk
0:01:13.6]} 28... Kh8 {[%clk 0:01:09.9]} 29. a3 {[%clk 0:00:58.2]} 29... b3
{[%clk 0:01:09.6]} 30. Bh6 {[%clk 0:00:46.9]} 30... Bxh6 {[%clk 0:00:52.4]} 31.
Qxh6 {[%clk 0:00:41.4]} 31... Bxd5 {[%clk 0:00:52.9]} 32. cxd5 {[%clk
0:00:30.6]} 32... Nf4 {[%clk 0:00:53.1]} 33. Rad1 {[%clk 0:00:28.5]} 33... Rf7
{[%clk 0:00:25.5]} 34. Kh1 {[%clk 0:00:27.8]} 34... Rc8 {[%clk 0:00:20.6]} 35.
g3 {[%clk 0:00:25.4]} 35... Nh5 {[%clk 0:00:11.7]} 36. Bc4 {[%clk 0:00:24.3]}
36... a5 {[%clk 0:00:11.6]} 37. Re3 {[%clk 0:00:08.1]} 37... a4 {[%clk
0:00:11.9]} 38. Rc1 {[%clk 0:00:06.2]} 38... Qd7 {[%clk 0:00:12.1]} 39. h3
{[%clk 0:00:04.4]} 39... Qd6 {[%clk 0:00:12.6]} 40. Kg2 {[%clk 0:00:03.8]} 40...
Ng7 {[%clk 0:00:11.4]} 41. Ree1 {[%clk 0:00:03.6]} 41... Re8 {[%clk 0:00:11.4]}
42. Qd2 {[%clk 0:00:03.6]} 42... Rff8 {[%clk 0:00:10.6]} 43. Nh6 {[%clk
0:00:04.1]} 43... f5 {[%clk 0:00:10.8]} 44. exf5 {[%clk 0:00:02.3]} 44... gxf5
{[%clk 0:00:11.7]} 45. Rc3 {[%clk 0:00:02.1]} 45... f4 {[%clk 0:00:11.3]} 46.
Ng4 {[%clk 0:00:02.3]} 46... h5 {[%clk 0:00:09.2]} 47. Nh2 {[%clk 0:00:02.4]}
47... Qg6 {[%clk 0:00:09.5]} 48. Bd3 {[%clk 0:00:01.7]} 48... e4 {[%clk
0:00:09.3]} 49. Bb1 {[%clk 0:00:02.2]} 49... h4 {[%clk 0:00:03.6]} 50. g4 {[%clk
0:00:02.4]} 50... Re5 {[%clk 0:00:03.5]} 51. Rxc5 {[%clk 0:00:02.5]} 51... f3+
{[%clk 0:00:01.9]} 52. Kg1 {[%clk 0:00:02.3]} 52... Ne2+ {[%clk 0:00:02.8]} 53.
Rxe2 {[%clk 0:00:02.7]} 53... fxe2 {[%clk 0:00:03.7]} 54. Qxe2 {[%clk
0:00:03.3]} 54... Qg5 {[%clk 0:00:04.3]} 55. Nf1 {[%clk 0:00:03.1]} 55... Qf4
{[%clk 0:00:04.6]} 56. Ne3 {[%clk 0:00:03.4]} 56... Ne6 {[%clk 0:00:03.6]} 57.
Rc4 {[%clk 0:00:01.6]} 57... Ng5 {[%clk 0:00:03.9]} 58. Kg2 {[%clk 0:00:02.2]}
58... Re7 {[%clk 0:00:02]} 59. d6 {[%clk 0:00:02.6]} 59... Ref7 {[%clk
0:00:02.4]} 60. Nd1 {[%clk 0:00:01.1]} 60... Qxd6 {[%clk 0:00:01.7]} 61. Qe3
{[%clk 0:00:01]} 61... Qf4 {[%clk 0:00:02.6]} 62. Qxf4 {[%clk 0:00:01.5]} 62...
Rxf4 {[%clk 0:00:03.5]} 63. Rc5 {[%clk 0:00:02]} 63... Nf3 {[%clk 0:00:03.3]}
64. Rh5+ {[%clk 0:00:02.7]} 64... Kg7 {[%clk 0:00:03.5]} 65. Nc3 {[%clk
0:00:03.3]} 65... Ne1+ {[%clk 0:00:03.6]} 66. Kf1 {[%clk 0:00:04]} 66... Nd3
{[%clk 0:00:04.4]} 67. Bxd3 {[%clk 0:00:04.1]} 67... exd3 {[%clk 0:00:05.3]} 68.
Nd1 {[%clk 0:00:04.7]} 68... Re4 {[%clk 0:00:05.5]} 69. Rd5 {[%clk 0:00:04.2]}
69... Rf3 {[%clk 0:00:06.1]} 70. Kg2 {[%clk 0:00:04.6]} 70... Rf8 {[%clk
0:00:06.5]} 71. Rxd3 {[%clk 0:00:05]} 71... Re2 {[%clk 0:00:07.2]} 72. Kf1
{[%clk 0:00:03.9]} 72... Rc2 {[%clk 0:00:07.4]} 73. Kg2 {[%clk 0:00:04.4]} 73...
Re8 {[%clk 0:00:07.5]} 74. Kf3 {[%clk 0:00:04]} 74... Re1 {[%clk 0:00:07.7]} 75.
Kf4 {[%clk 0:00:03.7]} 75... Rh1 {[%clk 0:00:07.5]} 76. Kg5 {[%clk 0:00:03.6]}
76... Kf7 {[%clk 0:00:03.9]} 77. Kxh4 {[%clk 0:00:03.4]} 77... Ke6 {[%clk
0:00:03.8]} 78. f4 {[%clk 0:00:03]} 78... Rxd1 {[%clk 0:00:01.6]} 79. Rxd1
{[%clk 0:00:03.1]} 79... Rxb2 {[%clk 0:00:02.5]} 80. Rd4 {[%clk 0:00:03.1]}
80... Rc2 {[%clk 0:00:03.1]} 81. Rxa4 {[%clk 0:00:03.3]} 81... b2 {[%clk
0:00:04]} 82. Rb4 {[%clk 0:00:03.8]} 82... Kd5 {[%clk 0:00:04.9]} 83. Kg5 {[%clk
0:00:04.1]} 83... Kc6 {[%clk 0:00:03.9]} 84. h4 {[%clk 0:00:04.2]} 84... Rc5+
{[%clk 0:00:04.6]} 85. Kg6 {[%clk 0:00:03.7]} 85... Rb5 {[%clk 0:00:05.5]} 86.
Rxb2 {[%clk 0:00:01.5]} 86... Rxb2 {[%clk 0:00:06.4]} 87. h5 {[%clk 0:00:01.9]}
87... Kd7 {[%clk 0:00:07.3]} 88. f5 {[%clk 0:00:01.2]} 88... Ke8 {[%clk
0:00:07.5]} 89. g5 {[%clk 0:00:01.5]} 89... Kf8 {[%clk 0:00:08]} 90. Kh7 {[%clk
0:00:01.7]} 90... Rb7+ {[%clk 0:00:08.4]} 91. Kh6 {[%clk 0:00:02.3]} 91... Kf7
{[%clk 0:00:08.6]} 92. f6 {[%clk 0:00:01.9]} 92... Ra7 {[%clk 0:00:08.9]} 93.
Kh7 {[%clk 0:00:02.2]} 93... Rxa3 {[%clk 0:00:08.5]} 94. g6+ {[%clk 0:00:02.4]}
94... Kxf6 {[%clk 0:00:08.7]} 95. g7 {[%clk 0:00:03]} 95... Ra7 {[%clk
0:00:06.9]} 96. h6 {[%clk 0:00:03.4]} 96... Rb7 {[%clk 0:00:06.7]} 97. Kh8
{[%clk 0:00:03.4]} 97... Kg6 {[%clk 0:00:02.7]} 98. g8=Q+ {[%clk 0:00:03.4]}
98... Kxh6 {[%clk 0:00:03.6]} 99. Qf8+ {[%clk 0:00:03.8]} 99... Kg6 {[%clk
0:00:03.5]} 100. Qe8+ {[%clk 0:00:03.9]} 100... Kf5 {[%clk 0:00:01.5]} 101. Qc8+
{[%clk 0:00:03.5]} 101... Rd7 {[%clk 0:00:01.5]} 102. Qxd7+ {[%clk 0:00:03.7]}
102... Ke5 {[%clk 0:00:02.3]} 103. Qg7+ {[%clk 0:00:04.4]} 103... Ke6 {[%clk
0:00:02.5]} 104. Kh7 {[%clk 0:00:05.2]} 104... Kd5 {[%clk 0:00:03.4]} 105. Kh6
{[%clk 0:00:06]} 105... Kd6 {[%clk 0:00:04.3]} 106. Kh5 {[%clk 0:00:06.9]}
106... Kd5 {[%clk 0:00:05.2]} 107. Kh4 {[%clk 0:00:07.8]} 107... Ke4 {[%clk
0:00:05.7]} 108. Kh3 {[%clk 0:00:08.7]} 108... Ke3 {[%clk 0:00:06.5]} 109. Kh2
{[%clk 0:00:09.6]} 109... Kd3 {[%clk 0:00:07.4]} 110. Kh1 {[%clk 0:00:10.5]}
110... Kc4 {[%clk 0:00:08.3]} 111. Qe5 {[%clk 0:00:09.1]} 111... Kb4 {[%clk
0:00:07.3]} 112. Qc7 {[%clk 0:00:09]} 112... Kb3 {[%clk 0:00:08.2]} 113. Kg2
{[%clk 0:00:08.8]} 113... Kb2 {[%clk 0:00:08.5]} 114. Kf3 {[%clk 0:00:09.3]}
114... Kb3 {[%clk 0:00:08.5]} 115. Ke3 {[%clk 0:00:10]} 115... Kb2 {[%clk
0:00:09.4]} 116. Kd3 {[%clk 0:00:10.2]} 116... Kb1 {[%clk 0:00:09.6]} 117. Qc2+
{[%clk 0:00:09.8]} 117... Ka1 {[%clk 0:00:09]} 118. Qd2 {[%clk 0:00:10.5]} 1-0

[Event "Early-Titled-Tuesday-Blitz-May-28-2024"]
[Site "Chess.com"]
[Date "2024.05.28"]
[Round "9"]
[White "ArchibaldCerveza29"]
[Black "GoValya"]
[Result "1-0"]
[WhiteElo "2356"]
[BlackElo "2221"]
[TimeControl "180+1"]
[EndTime "9:41:47 PDT"]
[Termination "ArchibaldCerveza29 won by checkmate"]

1. e4 {[%clk 0:03:00.9]} 1... e6 {[%clk 0:02:58.4]} 2. d4 {[%clk 0:02:54.7]}
2... d5 {[%clk 0:02:58.6]} 3. Nd2 {[%clk 0:02:55.4]} 3... c5 {[%clk 0:02:56.1]}
4. c3 {[%clk 0:02:54.8]} 4... Nc6 {[%clk 0:02:55.6]} 5. Ngf3 {[%clk 0:02:53.9]}
5... Nf6 {[%clk 0:02:54.2]} 6. Bd3 {[%clk 0:02:53.2]} 6... cxd4 {[%clk
0:02:51.2]} 7. cxd4 {[%clk 0:02:53.3]} 7... Nb4 {[%clk 0:02:51.2]} 8. Bb1 {[%clk
0:02:52.7]} 8... b6 {[%clk 0:02:39]} 9. e5 {[%clk 0:02:44.2]} 9... Nd7 {[%clk
0:02:36.8]} 10. a3 {[%clk 0:02:28.4]} 10... Nc6 {[%clk 0:02:36.6]} 11. O-O
{[%clk 0:02:28.6]} 11... Be7 {[%clk 0:02:31.9]} 12. g3 {[%clk 0:02:27]} 12...
Ba6 {[%clk 0:02:22.8]} 13. Re1 {[%clk 0:02:26.3]} 13... O-O {[%clk 0:02:13.6]}
14. Qc2 {[%clk 0:02:26.1]} 14... Rc8 {[%clk 0:02:13]} 15. Qxh7# {[%clk
0:02:24.5]} 1-0

[Event "Early-Titled-Tuesday-Blitz-May-28-2024"]
[Site "Chess.com"]
[Date "2024.05.28"]
[Round "9"]
[White "SoCalJuniorChess"]
[Black "Actuary44"]
[Result "0-1"]
[WhiteElo "2250"]
[BlackElo "2472"]
[TimeControl "180+1"]
[EndTime "9:42:02 PDT"]
[Termination "Actuary44 won by resignation"]

1. d4 {[%clk 0:03:00.9]} 1... Nf6 {[%clk 0:02:59.6]} 2. Nc3 {[%clk 0:03:01.4]}
2... g6 {[%clk 0:02:58.3]} 3. Bf4 {[%clk 0:03:00.8]} 3... d6 {[%clk 0:02:58.5]}
4. e3 {[%clk 0:03:01.1]} 4... Bg7 {[%clk 0:02:59.1]} 5. h4 {[%clk 0:03:01.5]}
5... Nc6 {[%clk 0:02:53.9]} 6. h5 {[%clk 0:02:58.3]} 6... Nxh5 {[%clk
0:02:53.6]} 7. Rxh5 {[%clk 0:02:59.2]} 7... gxh5 {[%clk 0:02:54.1]} 8. Qxh5
{[%clk 0:02:59.8]} 8... e5 {[%clk 0:02:52.2]} 9. Bg5 {[%clk 0:02:57.2]} 9... Bf6
{[%clk 0:02:46.5]} 10. Bh6 {[%clk 0:02:51.5]} 10... exd4 {[%clk 0:02:38.2]} 11.
exd4 {[%clk 0:02:50.8]} 11... Nxd4 {[%clk 0:02:38.5]} 12. O-O-O {[%clk
0:02:50.7]} 12... Be6 {[%clk 0:02:38.2]} 13. Nd5 {[%clk 0:02:44.6]} 13... c6
{[%clk 0:02:18.3]} 14. Nxf6+ {[%clk 0:02:34.5]} 14... Qxf6 {[%clk 0:02:19.2]}
15. c3 {[%clk 0:02:27.2]} 15... Nf5 {[%clk 0:02:08.1]} 16. Nf3 {[%clk
0:02:22.6]} 16... Qxh6+ {[%clk 0:02:06.8]} 0-1

[Event "Early-Titled-Tuesday-Blitz-May-28-2024"]
[Site "Chess.com"]
[Date "2024.05.28"]
[Round "9"]
[White "frankshar"]
[Black "Javylavilla"]
[Result "1-0"]
[WhiteElo "2502"]
[BlackElo "2339"]
[TimeControl "180+1"]
[EndTime "9:42:09 PDT"]
[Termination "frankshar won by resignation"]

1. d4 {[%clk 0:03:00.9]} 1... Nf6 {[%clk 0:02:59.1]} 2. c4 {[%clk 0:02:58.4]}
2... e6 {[%clk 0:02:58.9]} 3. Nf3 {[%clk 0:02:56.2]} 3... d5 {[%clk 0:02:58.5]}
4. g3 {[%clk 0:02:55]} 4... Be7 {[%clk 0:02:57.4]} 5. Bg2 {[%clk 0:02:51.3]}
5... O-O {[%clk 0:02:57.5]} 6. O-O {[%clk 0:02:51.2]} 6... dxc4 {[%clk 0:02:57]}
7. Qc2 {[%clk 0:02:48.3]} 7... a6 {[%clk 0:02:56.3]} 8. a4 {[%clk 0:02:47.8]}
8... Bd7 {[%clk 0:02:53.7]} 9. Qxc4 {[%clk 0:02:45.9]} 9... Bc6 {[%clk
0:02:53.6]} 10. Bg5 {[%clk 0:02:46.2]} 10... Nbd7 {[%clk 0:02:52.7]} 11. Nc3
{[%clk 0:02:39.3]} 11... h6 {[%clk 0:02:52.3]} 12. Bxf6 {[%clk 0:02:38.9]} 12...
Nxf6 {[%clk 0:02:53.1]} 13. a5 {[%clk 0:02:33.7]} 13... Rc8 {[%clk 0:02:50]} 14.
Rfd1 {[%clk 0:02:31.3]} 14... Nd5 {[%clk 0:02:48.5]} 15. Ne5 {[%clk 0:02:28.6]}
15... Nxc3 {[%clk 0:02:41.7]} 16. Nxc6 {[%clk 0:02:22.7]} 16... bxc6 {[%clk
0:02:42.6]} 17. Qxc3 {[%clk 0:02:22.2]} 17... Rb8 {[%clk 0:02:40.3]} 18. Qxc6
{[%clk 0:02:18.7]} 18... Rxb2 {[%clk 0:02:39.3]} 19. Qxa6 {[%clk 0:02:17.8]}
19... Bf6 {[%clk 0:02:35.6]} 20. Qd3 {[%clk 0:02:16.8]} 20... Qb8 {[%clk
0:02:33.7]} 21. a6 {[%clk 0:02:16.3]} 21... Rd8 {[%clk 0:02:33.2]} 22. a7 {[%clk
0:02:14.4]} 1-0

[Event "Early-Titled-Tuesday-Blitz-May-28-2024"]
[Site "Chess.com"]
[Date "2024.05.28"]
[Round "9"]
[White "aljado"]
[Black "NovakRatko"]
[Result "1-0"]
[WhiteElo "2182"]
[BlackElo "2360"]
[TimeControl "180+1"]
[EndTime "9:42:22 PDT"]
[Termination "aljado won by resignation"]

1. e4 {[%clk 0:03:00.9]} 1... d5 {[%clk 0:02:58.9]} 2. d4 {[%clk 0:02:58.4]}
2... dxe4 {[%clk 0:02:58.9]} 3. Nc3 {[%clk 0:02:58.7]} 3... e5 {[%clk
0:02:59.4]} 4. Nxe4 {[%clk 0:02:57.2]} 4... exd4 {[%clk 0:02:58.9]} 5. Nf3
{[%clk 0:02:55.3]} 5... Nc6 {[%clk 0:02:58.4]} 6. Bb5 {[%clk 0:02:54.4]} 6...
Bd7 {[%clk 0:02:54.6]} 7. O-O {[%clk 0:02:53.6]} 7... f5 {[%clk 0:02:54.6]} 8.
Neg5 {[%clk 0:02:44.3]} 8... Bc5 {[%clk 0:02:54]} 9. Bxc6 {[%clk 0:02:38.9]}
9... bxc6 {[%clk 0:02:53]} 10. Nxd4 {[%clk 0:02:34.9]} 10... Qf6 {[%clk
0:02:46.1]} 11. Re1+ {[%clk 0:02:31.1]} 11... Ne7 {[%clk 0:02:43.9]} 12. Nge6
{[%clk 0:02:23.3]} 12... Bd6 {[%clk 0:02:33.2]} 13. Bg5 {[%clk 0:02:09.6]} 13...
Qf7 {[%clk 0:02:25.3]} 14. Bxe7 {[%clk 0:02:07.8]} 14... Qxe7 {[%clk 0:02:08.5]}
15. Nxg7+ {[%clk 0:02:03.8]} 1-0

[Event "Early-Titled-Tuesday-Blitz-May-28-2024"]
[Site "Chess.com"]
[Date "2024.05.28"]
[Round "9"]
[White "Qvalda"]
[Black "MiguelBestard1981"]
[Result "1-0"]
[WhiteElo "2412"]
[BlackElo "2277"]
[TimeControl "180+1"]
[EndTime "9:42:57 PDT"]
[Termination "Qvalda won by checkmate"]

1. d4 {[%clk 0:03:00.9]} 1... d5 {[%clk 0:02:59.4]} 2. c4 {[%clk 0:02:59.5]}
2... c5 {[%clk 0:02:58.7]} 3. cxd5 {[%clk 0:02:58]} 3... cxd4 {[%clk 0:02:58.5]}
4. Qxd4 {[%clk 0:02:58.6]} 4... Nc6 {[%clk 0:02:55.3]} 5. Qa4 {[%clk 0:02:55.3]}
5... Qxd5 {[%clk 0:02:53.6]} 6. Nc3 {[%clk 0:02:54.7]} 6... Qa5 {[%clk
0:02:50.5]} 7. Qxa5 {[%clk 0:02:54.2]} 7... Nxa5 {[%clk 0:02:50.9]} 8. Nf3
{[%clk 0:02:52.3]} 8... Bd7 {[%clk 0:02:43.4]} 9. g3 {[%clk 0:02:49.7]} 9... Bc6
{[%clk 0:02:39.3]} 10. Bg2 {[%clk 0:02:49.1]} 10... O-O-O {[%clk 0:02:36.1]} 11.
O-O {[%clk 0:02:48.2]} 11... f6 {[%clk 0:02:34.2]} 12. Be3 {[%clk 0:02:40]}
12... b6 {[%clk 0:02:34.1]} 13. Rfc1 {[%clk 0:02:34.2]} 13... Kb7 {[%clk
0:02:33.9]} 14. b4 {[%clk 0:02:22.7]} 14... Nc4 {[%clk 0:02:32.9]} 15. b5 {[%clk
0:02:21.6]} 15... Bxf3 {[%clk 0:02:22.9]} 16. Bxf3+ {[%clk 0:02:21]} 16... Kb8
{[%clk 0:02:23.4]} 17. Nd5 {[%clk 0:01:49.7]} 17... Nxe3 {[%clk 0:02:17.8]} 18.
Nb4 {[%clk 0:01:38.8]} 18... a5 {[%clk 0:02:12.2]} 19. Na6+ {[%clk 0:01:36]}
19... Ka7 {[%clk 0:02:02.8]} 20. Rc7# {[%clk 0:01:35.8]} 1-0